[Event "GrandPrix_29.05"]
[Site "Chess.com"]
[Date "2020.05.29"]
[Round "2"]
[White "LazovT"]
[Black "Skatchkov_V"]
[Result "0-1"]
[WhiteElo "1858"]
[BlackElo "2185"]
[TimeControl "600+2"]
[EndTime "9:55:59 PDT"]
[Termination "Skatchkov_V won by resignation"]

1. e4 {[%clk 0:10:01.9]} 1... e5 {[%clk 0:10:00]} 2. Nf3 {[%clk 0:10:01.2]} 2...
Nf6 {[%clk 0:10:01.1]} 3. d3 {[%clk 0:09:52.1]} 3... Nc6 {[%clk 0:10:00.9]} 4.
Nbd2 {[%clk 0:09:53.7]} 4... d5 {[%clk 0:10:01.9]} 5. Be2 {[%clk 0:09:55.2]}
5... Bc5 {[%clk 0:10:01.5]} 6. c3 {[%clk 0:09:53.1]} 6... O-O {[%clk 0:09:45.4]}
7. O-O {[%clk 0:09:21.1]} 7... Re8 {[%clk 0:09:41.5]} 8. Re1 {[%clk 0:08:26.8]}
8... Ng4 {[%clk 0:08:48.3]} 9. Rf1 {[%clk 0:08:26.9]} 9... Nf6 {[%clk
0:08:49.5]} 10. b4 {[%clk 0:08:09.9]} 10... Bb6 {[%clk 0:08:43.3]} 11. a4 {[%clk
0:08:06.2]} 11... a6 {[%clk 0:07:49.5]} 12. Qc2 {[%clk 0:08:02.8]} 12... Bg4
{[%clk 0:07:46.9]} 13. h3 {[%clk 0:08:02.8]} 13... Bh5 {[%clk 0:07:47.6]} 14.
Nb3 {[%clk 0:07:58.1]} 14... h6 {[%clk 0:07:43.2]} 15. Bb2 {[%clk 0:07:31.4]}
15... Qe7 {[%clk 0:07:44.1]} 16. b5 {[%clk 0:07:30.1]} 16... axb5 {[%clk
0:07:28.8]} 17. axb5 {[%clk 0:07:32]} 17... Rxa1 {[%clk 0:06:50.1]} 18. Rxa1
{[%clk 0:07:33.9]} 18... Nb8 {[%clk 0:06:52]} 19. Ba3 {[%clk 0:05:14.9]} 19...
Qe6 {[%clk 0:06:10.2]} 20. c4 {[%clk 0:05:15.1]} 20... c6 {[%clk 0:05:52.1]} 21.
c5 {[%clk 0:04:32.4]} 21... Bd8 {[%clk 0:05:52.5]} 22. b6 {[%clk 0:04:33.3]}
22... dxe4 {[%clk 0:05:25.3]} 23. dxe4 {[%clk 0:04:31.3]} 23... Nxe4 {[%clk
0:05:26.3]} 24. Qxe4 {[%clk 0:02:39.9]} 24... Qxb3 {[%clk 0:05:26.2]} 25. Bc4
{[%clk 0:02:40.8]} 25... Qc3 {[%clk 0:05:17.9]} 26. Ra2 {[%clk 0:02:30.4]} 26...
Bg6 {[%clk 0:05:16.4]} 27. Qe2 {[%clk 0:02:21.3]} 27... Nd7 {[%clk 0:04:22.2]}
28. Nd2 {[%clk 0:01:44.1]} 28... Qd4 {[%clk 0:03:17.8]} 29. Nb3 {[%clk
0:01:39.1]} 29... Qh4 {[%clk 0:03:14.1]} 30. Na5 {[%clk 0:01:36.4]} 30... Qe7
{[%clk 0:01:54.9]} 31. Qe3 {[%clk 0:00:26.5]} 31... Nf6 {[%clk 0:01:44.2]} 32.
Qb3 {[%clk 0:00:15.6]} 32... Ne4 {[%clk 0:01:36.6]} 33. Qb4 {[%clk 0:00:08.1]}
33... Qd7 {[%clk 0:01:31.6]} 34. Qe1 {[%clk 0:00:06.9]} 34... Bg5 {[%clk
0:01:30.4]} 35. Kh2 {[%clk 0:00:05.1]} 35... Bf4+ {[%clk 0:01:21.7]} 36. g3
{[%clk 0:00:06]} 36... Bd2 {[%clk 0:01:23]} 37. Qd1 {[%clk 0:00:04.2]} 37... Qd4
{[%clk 0:01:17.8]} 38. f3 {[%clk 0:00:03.2]} 38... Qf2+ {[%clk 0:01:18.4]} 0-1

[Event "GrandPrix_29.05"]
[Site "Chess.com"]
[Date "2020.05.29"]
[Round "2"]
[White "hypert"]
[Black "chessdjw"]
[Result "0-1"]
[WhiteElo "1974"]
[BlackElo "2075"]
[TimeControl "600+2"]
[EndTime "9:56:01 PDT"]
[Termination "chessdjw won by resignation"]

1. e4 {[%clk 0:10:01.9]} 1... e5 {[%clk 0:09:54.5]} 2. Nf3 {[%clk 0:10:02.1]}
2... Nc6 {[%clk 0:09:53.9]} 3. Nc3 {[%clk 0:09:55.7]} 3... Nf6 {[%clk 0:09:53]}
4. d4 {[%clk 0:09:56.7]} 4... exd4 {[%clk 0:09:52.9]} 5. Nxd4 {[%clk 0:09:58.6]}
5... Bb4 {[%clk 0:09:53.9]} 6. Nxc6 {[%clk 0:09:59.5]} 6... bxc6 {[%clk
0:09:53.1]} 7. Bd3 {[%clk 0:10:00.9]} 7... O-O {[%clk 0:09:53.2]} 8. O-O {[%clk
0:10:01.3]} 8... Re8 {[%clk 0:09:54.6]} 9. Qf3 {[%clk 0:09:47.4]} 9... Rb8
{[%clk 0:09:50.5]} 10. h3 {[%clk 0:09:44.2]} 10... Bd6 {[%clk 0:09:39.5]} 11.
Ne2 {[%clk 0:09:16.4]} 11... c5 {[%clk 0:09:07.6]} 12. Ng3 {[%clk 0:09:02.1]}
12... Be5 {[%clk 0:08:43.6]} 13. Rb1 {[%clk 0:08:34.4]} 13... Bb7 {[%clk
0:08:38.1]} 14. Bf4 {[%clk 0:06:36.9]} 14... d6 {[%clk 0:07:32.4]} 15. b3 {[%clk
0:06:21.8]} 15... Nd7 {[%clk 0:06:41.6]} 16. Bxe5 {[%clk 0:05:42.8]} 16... Nxe5
{[%clk 0:06:41.4]} 17. Qd1 {[%clk 0:05:42.8]} 17... Qg5 {[%clk 0:06:01]} 18. Nf5
{[%clk 0:05:16.8]} 18... Qf4 {[%clk 0:05:53]} 19. g3 {[%clk 0:04:52.8]} 19...
Qf3 {[%clk 0:05:21.8]} 20. Nh4 {[%clk 0:02:34.3]} 20... Qxd1 {[%clk 0:05:20.7]}
21. Rbxd1 {[%clk 0:02:35.7]} 21... g6 {[%clk 0:04:07.1]} 22. f4 {[%clk
0:02:30.4]} 22... Nxd3 {[%clk 0:03:33.3]} 23. cxd3 {[%clk 0:02:32.3]} 23... a5
{[%clk 0:03:32.4]} 24. Kf2 {[%clk 0:01:55.8]} 24... a4 {[%clk 0:03:32.7]} 25.
Rb1 {[%clk 0:01:53.7]} 25... Ba6 {[%clk 0:03:22.9]} 26. Ke3 {[%clk 0:01:34.5]}
26... f5 {[%clk 0:02:19]} 27. Rfe1 {[%clk 0:01:32]} 27... Rb4 {[%clk 0:02:13.2]}
28. bxa4 {[%clk 0:01:22.3]} 28... Rxa4 {[%clk 0:02:03.9]} 29. Nf3 {[%clk
0:00:58.9]} 29... fxe4 {[%clk 0:01:59.7]} 30. dxe4 {[%clk 0:00:59.6]} 30...
Rexe4+ {[%clk 0:01:56.4]} 31. Kf2 {[%clk 0:01:00.8]} 31... Rxa2+ {[%clk
0:01:56]} 32. Kg1 {[%clk 0:01:01.6]} 32... Rxe1+ {[%clk 0:01:50.8]} 33. Rxe1
{[%clk 0:01:03.5]} 33... Be2 {[%clk 0:01:46.8]} 34. Ng5 {[%clk 0:01:01.7]} 34...
c4 {[%clk 0:01:38.8]} 35. Ne6 {[%clk 0:00:59.4]} 35... c5 {[%clk 0:01:28.7]} 36.
g4 {[%clk 0:01:00.6]} 36... c3 {[%clk 0:01:28.3]} 37. f5 {[%clk 0:01:01.9]}
37... Rd2 {[%clk 0:01:18.1]} 38. Nf4 {[%clk 0:00:59.9]} 38... c2 {[%clk
0:01:06.4]} 39. f6 {[%clk 0:00:25.8]} 39... Rd1 {[%clk 0:01:01.4]} 40. Kf2
{[%clk 0:00:07.1]} 40... Rxe1 {[%clk 0:01:02]} 41. Kxe1 {[%clk 0:00:08.1]} 41...
c1=Q+ {[%clk 0:01:01.1]} 0-1

[Event "GrandPrix_29.05"]
[Site "Chess.com"]
[Date "2020.05.29"]
[Round "2"]
[White "DaVinci81"]
[Black "lelajavakhishvili"]
[Result "1-0"]
[WhiteElo "2366"]
[BlackElo "2268"]
[TimeControl "600+2"]
[EndTime "9:56:07 PDT"]
[Termination "DaVinci81 won by resignation"]

1. d4 {[%clk 0:09:59.6]} 1... Nf6 {[%clk 0:09:59]} 2. c4 {[%clk 0:10:00.1]} 2...
e6 {[%clk 0:09:58.7]} 3. Nf3 {[%clk 0:09:59.7]} 3... b6 {[%clk 0:09:53.8]} 4. a3
{[%clk 0:09:54.5]} 4... Bb7 {[%clk 0:09:53.4]} 5. Nc3 {[%clk 0:09:54]} 5... d5
{[%clk 0:09:54.3]} 6. cxd5 {[%clk 0:09:53.9]} 6... Nxd5 {[%clk 0:09:55.1]} 7. e3
{[%clk 0:09:50.4]} 7... Be7 {[%clk 0:09:50.5]} 8. Bb5+ {[%clk 0:09:50.1]} 8...
c6 {[%clk 0:09:50.3]} 9. Bd3 {[%clk 0:09:50.9]} 9... O-O {[%clk 0:09:37.7]} 10.
Qc2 {[%clk 0:09:28.9]} 10... h6 {[%clk 0:09:08.8]} 11. e4 {[%clk 0:09:25.9]}
11... Nxc3 {[%clk 0:09:09.5]} 12. bxc3 {[%clk 0:09:26.9]} 12... c5 {[%clk
0:09:10.7]} 13. O-O {[%clk 0:09:26.6]} 13... Nd7 {[%clk 0:09:08.2]} 14. Rd1
{[%clk 0:09:14.8]} 14... Qc7 {[%clk 0:09:01.3]} 15. Qe2 {[%clk 0:09:13.2]} 15...
Rfd8 {[%clk 0:08:57.3]} 16. a4 {[%clk 0:08:42.6]} 16... Rac8 {[%clk 0:08:31.3]}
17. Be3 {[%clk 0:08:15.2]} 17... Nf6 {[%clk 0:08:24.6]} 18. Nd2 {[%clk
0:08:13.4]} 18... cxd4 {[%clk 0:08:06]} 19. cxd4 {[%clk 0:08:13.1]} 19... Bb4
{[%clk 0:08:06.5]} 20. e5 {[%clk 0:07:52.1]} 20... Nd5 {[%clk 0:07:47.6]} 21.
Ne4 {[%clk 0:07:48.5]} 21... Nc3 {[%clk 0:06:53]} 22. Nxc3 {[%clk 0:06:27.6]}
22... Bxc3 {[%clk 0:06:53.3]} 23. Rac1 {[%clk 0:06:12.8]} 23... Qe7 {[%clk
0:05:56.6]} 24. Qg4 {[%clk 0:06:07.6]} 24... Kf8 {[%clk 0:05:45.1]} 25. Be4
{[%clk 0:05:21.1]} 25... Bb2 {[%clk 0:05:21.5]} 26. Rb1 {[%clk 0:04:51.9]} 26...
Bc3 {[%clk 0:05:09.3]} 27. h4 {[%clk 0:04:43.1]} 27... Bd5 {[%clk 0:04:46.2]}
28. Bxd5 {[%clk 0:04:40.1]} 28... Rxd5 {[%clk 0:04:44.4]} 29. Rd3 {[%clk
0:04:07]} 29... Bb4 {[%clk 0:04:20.7]} 30. Qe4 {[%clk 0:03:35.8]} 30... Ke8
{[%clk 0:03:11.3]} 31. h5 {[%clk 0:03:01.8]} 31... a5 {[%clk 0:03:03.8]} 32.
Rdd1 {[%clk 0:02:58.2]} 32... Rc4 {[%clk 0:02:58.1]} 33. Rdc1 {[%clk 0:02:53.5]}
33... Qc7 {[%clk 0:02:21.7]} 34. Rxc4 {[%clk 0:02:51.3]} 34... Qxc4 {[%clk
0:02:22.5]} 35. Rc1 {[%clk 0:02:52.7]} 35... Qe2 {[%clk 0:02:15.8]} 36. Qh4
{[%clk 0:02:16.8]} 36... Be7 {[%clk 0:02:10.3]} 37. Qg3 {[%clk 0:02:15.6]} 37...
Kf8 {[%clk 0:02:02.5]} 38. Qf4 {[%clk 0:01:35.7]} 38... Qxh5 {[%clk 0:01:49.2]}
39. Qe4 {[%clk 0:01:30.3]} 39... Kg8 {[%clk 0:01:18.5]} 40. Rc8+ {[%clk
0:00:58.6]} 40... Bd8 {[%clk 0:01:18.9]} 41. g4 {[%clk 0:00:53.9]} 41... Qh4
{[%clk 0:00:55.5]} 42. Kg2 {[%clk 0:00:50.8]} 42... Qe7 {[%clk 0:00:47.4]} 43.
Qc2 {[%clk 0:00:50.4]} 43... Qd7 {[%clk 0:00:45.1]} 44. Rb8 {[%clk 0:00:49.5]}
44... Qxa4 {[%clk 0:00:35.3]} 45. Qxa4 {[%clk 0:00:49.2]} 1-0

[Event "GrandPrix_29.05"]
[Site "Chess.com"]
[Date "2020.05.29"]
[Round "2"]
[White "lilleper1"]
[Black "IMTominho"]
[Result "1-0"]
[WhiteElo "2300"]
[BlackElo "1957"]
[TimeControl "600+2"]
[EndTime "9:56:08 PDT"]
[Termination "lilleper1 won by resignation"]

1. d4 {[%clk 0:09:59.8]} 1... d5 {[%clk 0:09:54.6]} 2. c4 {[%clk 0:09:59.9]}
2... c6 {[%clk 0:09:46.8]} 3. Nf3 {[%clk 0:10:00.1]} 3... Nf6 {[%clk 0:09:45.6]}
4. Nbd2 {[%clk 0:09:58.2]} 4... Bf5 {[%clk 0:09:38.1]} 5. Nh4 {[%clk 0:09:47.1]}
5... Be6 {[%clk 0:09:32.6]} 6. e3 {[%clk 0:09:32.7]} 6... g6 {[%clk 0:09:18.3]}
7. Be2 {[%clk 0:09:01.5]} 7... Bg7 {[%clk 0:09:18.6]} 8. b3 {[%clk 0:08:48.8]}
8... O-O {[%clk 0:09:13]} 9. Bb2 {[%clk 0:08:35.6]} 9... Nbd7 {[%clk 0:09:04.7]}
10. O-O {[%clk 0:08:35.1]} 10... c5 {[%clk 0:08:43.1]} 11. Nhf3 {[%clk
0:08:28.2]} 11... dxc4 {[%clk 0:07:55.4]} 12. bxc4 {[%clk 0:07:47.3]} 12... cxd4
{[%clk 0:07:12.9]} 13. Nxd4 {[%clk 0:07:40.1]} 13... Nc5 {[%clk 0:07:01]} 14.
Ba3 {[%clk 0:06:43]} 14... Nfd7 {[%clk 0:06:55.6]} 15. N2b3 {[%clk 0:06:02.6]}
15... Rc8 {[%clk 0:06:34.5]} 16. Rb1 {[%clk 0:05:47.3]} 16... b6 {[%clk
0:06:34.3]} 17. Qc2 {[%clk 0:05:19.3]} 17... Qc7 {[%clk 0:06:02.9]} 18. Nxe6
{[%clk 0:05:15.3]} 18... fxe6 {[%clk 0:05:26.3]} 19. Nd4 {[%clk 0:05:13.9]}
19... Kh8 {[%clk 0:05:23.8]} 20. Bg4 {[%clk 0:05:03.9]} 20... Rf6 {[%clk
0:05:19.1]} 21. Bb2 {[%clk 0:04:44.3]} 21... e5 {[%clk 0:05:16.2]} 22. Nb5
{[%clk 0:04:40.8]} 22... Qb8 {[%clk 0:05:17]} 23. Rbd1 {[%clk 0:04:33.2]} 23...
Rd8 {[%clk 0:05:15.9]} 24. Rd5 {[%clk 0:04:21.8]} 24... e6 {[%clk 0:04:53.8]}
25. Rd2 {[%clk 0:04:17.6]} 25... Rff8 {[%clk 0:04:29.4]} 26. Rfd1 {[%clk
0:03:18.4]} 26... Nf6 {[%clk 0:04:28.3]} 27. Bf3 {[%clk 0:03:07.8]} 27... e4
{[%clk 0:04:28]} 28. Bxf6 {[%clk 0:02:30.4]} 28... Rxd2 {[%clk 0:04:27.1]} 29.
Bxg7+ {[%clk 0:02:02.9]} 29... Kxg7 {[%clk 0:04:29]} 30. Qxd2 {[%clk 0:01:39.2]}
30... exf3 {[%clk 0:04:28.5]} 31. Qd6 {[%clk 0:01:23.6]} 31... Qb7 {[%clk
0:03:51.4]} 32. Nd4 {[%clk 0:01:09.6]} 32... fxg2 {[%clk 0:03:39.7]} 33. Nxe6+
{[%clk 0:01:04.9]} 33... Nxe6 {[%clk 0:03:40.1]} 34. Qxe6 {[%clk 0:01:06.1]}
34... Qf3 {[%clk 0:03:41]} 35. Rd7+ {[%clk 0:00:57.9]} 35... Kh6 {[%clk
0:03:41]} 36. Rd2 {[%clk 0:00:54.2]} 36... Rf6 {[%clk 0:03:00.1]} 37. Qd5 {[%clk
0:00:53.5]} 37... Qg4 {[%clk 0:02:47.8]} 38. Rd4 {[%clk 0:00:53]} 38... Qe2
{[%clk 0:02:40.2]} 39. Qxg2 {[%clk 0:00:45]} 39... Qe1+ {[%clk 0:02:36.7]} 40.
Qf1 {[%clk 0:00:45.7]} 40... Qxf1+ {[%clk 0:01:59.6]} 41. Kxf1 {[%clk
0:00:46.3]} 41... Rf5 {[%clk 0:01:57.9]} 42. Rd5 {[%clk 0:00:43.7]} 42... Rf7
{[%clk 0:01:53]} 43. Ke2 {[%clk 0:00:42.2]} 43... Kg7 {[%clk 0:01:51.7]} 44. f4
{[%clk 0:00:42.3]} 44... Kf6 {[%clk 0:01:49]} 45. Kd3 {[%clk 0:00:42.5]} 45...
Ke6 {[%clk 0:01:38.8]} 46. h4 {[%clk 0:00:42.3]} 46... h5 {[%clk 0:01:36.8]} 47.
Kd4 {[%clk 0:00:40.8]} 47... Rc7 {[%clk 0:01:34.4]} 48. Re5+ {[%clk 0:00:39.3]}
48... Kf6 {[%clk 0:01:34.8]} 49. e4 {[%clk 0:00:39.3]} 49... Rd7+ {[%clk
0:01:12.4]} 50. Rd5 {[%clk 0:00:39.6]} 50... Rc7 {[%clk 0:01:14.3]} 51. a4
{[%clk 0:00:40]} 1-0

[Event "GrandPrix_29.05"]
[Site "Chess.com"]
[Date "2020.05.29"]
[Round "2"]
[White "viktorko131"]
[Black "ulkaf961"]
[Result "1-0"]
[WhiteElo "2208"]
[BlackElo "1925"]
[TimeControl "600+2"]
[EndTime "9:56:14 PDT"]
[Termination "viktorko131 won by resignation"]

1. e4 {[%clk 0:10:01.9]} 1... e6 {[%clk 0:10:00.5]} 2. d4 {[%clk 0:10:01.4]}
2... d5 {[%clk 0:10:01.6]} 3. Nd2 {[%clk 0:10:02.1]} 3... a6 {[%clk 0:10:01]} 4.
Ngf3 {[%clk 0:09:53.2]} 4... Nf6 {[%clk 0:10:01.1]} 5. Bd3 {[%clk 0:09:47.8]}
5... c5 {[%clk 0:10:01.2]} 6. c3 {[%clk 0:09:39.3]} 6... Nc6 {[%clk 0:10:00.7]}
7. O-O {[%clk 0:09:34.9]} 7... Be7 {[%clk 0:09:44.8]} 8. e5 {[%clk 0:08:37.7]}
8... Nd7 {[%clk 0:09:44.9]} 9. Re1 {[%clk 0:08:39.1]} 9... Qb6 {[%clk
0:08:12.3]} 10. dxc5 {[%clk 0:07:07.2]} 10... Nxc5 {[%clk 0:06:53]} 11. Bc2
{[%clk 0:07:05.5]} 11... a5 {[%clk 0:06:50.3]} 12. Nb3 {[%clk 0:06:48.3]} 12...
Nxb3 {[%clk 0:04:40.4]} 13. axb3 {[%clk 0:06:47.1]} 13... O-O {[%clk 0:04:12]}
14. b4 {[%clk 0:05:30.4]} 14... f6 {[%clk 0:03:36.7]} 15. exf6 {[%clk
0:04:59.2]} 15... Bxf6 {[%clk 0:03:36.9]} 16. Qd3 {[%clk 0:04:49.5]} 16... g6
{[%clk 0:03:36.5]} 17. b5 {[%clk 0:04:46]} 17... Na7 {[%clk 0:01:10.9]} 18. Bh6
{[%clk 0:03:54.9]} 18... Rf7 {[%clk 0:01:04.1]} 19. Qxd5 {[%clk 0:03:27.4]}
19... Qxb5 {[%clk 0:00:19.4]} 20. Qd2 {[%clk 0:02:09.1]} 20... Nc6 {[%clk
0:00:16.1]} 21. Ng5 {[%clk 0:01:29.8]} 21... Bxg5 {[%clk 0:00:15.6]} 22. Bxg5
{[%clk 0:01:30.3]} 22... Bd7 {[%clk 0:00:16.1]} 23. Rad1 {[%clk 0:01:05.4]}
23... Re8 {[%clk 0:00:13.6]} 24. h4 {[%clk 0:00:51.3]} 24... Kg7 {[%clk
0:00:14.5]} 25. Bh6+ {[%clk 0:00:48.1]} 25... Kg8 {[%clk 0:00:15]} 26. Qe3
{[%clk 0:00:31.6]} 26... Qh5 {[%clk 0:00:11.9]} 27. Bg5 {[%clk 0:00:26.5]} 27...
Ne7 {[%clk 0:00:12.1]} 28. Rxd7 {[%clk 0:00:19.7]} 28... Nf5 {[%clk 0:00:11.1]}
29. Qd2 {[%clk 0:00:19.9]} 29... Ref8 {[%clk 0:00:08.3]} 30. Rxf7 {[%clk
0:00:19.7]} 30... Rxf7 {[%clk 0:00:09.2]} 31. Rxe6 {[%clk 0:00:17.5]} 31... Nxh4
{[%clk 0:00:10.2]} 32. Re8+ {[%clk 0:00:16.4]} 32... Rf8 {[%clk 0:00:09.6]} 33.
Bb3+ {[%clk 0:00:15.4]} 1-0

[Event "GrandPrix_29.05"]
[Site "Chess.com"]
[Date "2020.05.29"]
[Round "2"]
[White "Azatic"]
[Black "Denis0027"]
[Result "1-0"]
[WhiteElo "2425"]
[BlackElo "2213"]
[TimeControl "600+2"]
[EndTime "9:56:22 PDT"]
[Termination "Azatic won on time"]

1. e4 {[%clk 0:10:01.9]} 1... d6 {[%clk 0:09:55.6]} 2. d4 {[%clk 0:10:02.6]}
2... g6 {[%clk 0:09:55.1]} 3. Nc3 {[%clk 0:09:58.1]} 3... Bg7 {[%clk 0:09:56]}
4. f4 {[%clk 0:09:58.7]} 4... a6 {[%clk 0:09:39]} 5. Nf3 {[%clk 0:09:59]} 5...
Nc6 {[%clk 0:09:39.5]} 6. d5 {[%clk 0:09:50.2]} 6... Na7 {[%clk 0:09:36.1]} 7.
Bc4 {[%clk 0:08:31.6]} 7... c5 {[%clk 0:09:32]} 8. dxc6 {[%clk 0:06:15.3]} 8...
bxc6 {[%clk 0:09:22.2]} 9. O-O {[%clk 0:06:02.3]} 9... Qb6+ {[%clk 0:09:11.8]}
10. Kh1 {[%clk 0:06:02.6]} 10... Nf6 {[%clk 0:09:13.1]} 11. e5 {[%clk
0:05:27.2]} 11... Ng4 {[%clk 0:09:09.8]} 12. Qe2 {[%clk 0:04:17.5]} 12... d5
{[%clk 0:09:02.6]} 13. Nxd5 {[%clk 0:03:55.6]} 13... cxd5 {[%clk 0:09:00.5]} 14.
Bxd5 {[%clk 0:03:57.5]} 14... Bb7 {[%clk 0:08:58]} 15. Bxf7+ {[%clk 0:03:54.3]}
15... Kxf7 {[%clk 0:08:51.7]} 16. Ng5+ {[%clk 0:03:55.4]} 16... Ke8 {[%clk
0:08:04.5]} 17. Qxg4 {[%clk 0:03:57.3]} 17... Bc8 {[%clk 0:08:05.3]} 18. Qf3
{[%clk 0:03:31.3]} 18... Qc6 {[%clk 0:08:02.4]} 19. Qb3 {[%clk 0:03:23.2]} 19...
e6 {[%clk 0:07:47.4]} 20. Be3 {[%clk 0:03:22.4]} 20... h6 {[%clk 0:07:13.3]} 21.
Nf3 {[%clk 0:03:23.3]} 21... Nb5 {[%clk 0:07:14.2]} 22. Rad1 {[%clk 0:03:19.8]}
22... Kf7 {[%clk 0:06:43.6]} 23. a4 {[%clk 0:03:10.9]} 23... Nc7 {[%clk
0:06:42.9]} 24. Rd6 {[%clk 0:03:11.2]} 24... Qe8 {[%clk 0:06:11]} 25. Nd4 {[%clk
0:03:11.3]} 25... Bf8 {[%clk 0:06:06]} 26. f5 {[%clk 0:02:53.5]} 26... Bxd6
{[%clk 0:05:59.4]} 27. exd6 {[%clk 0:02:55.4]} 27... Kg7 {[%clk 0:05:23.8]} 28.
f6+ {[%clk 0:02:51.8]} 28... Kf7 {[%clk 0:05:19.8]} 29. dxc7 {[%clk 0:02:52.7]}
29... Qd7 {[%clk 0:05:15.1]} 30. Qb6 {[%clk 0:02:21.8]} 30... Qd5 {[%clk
0:04:04.1]} 31. Nc6 {[%clk 0:02:21]} 31... g5 {[%clk 0:02:54]} 32. Nd8+ {[%clk
0:01:48.6]} 32... Kg6 {[%clk 0:02:48.3]} 33. f7 {[%clk 0:01:49.7]} 33... Rf8
{[%clk 0:02:48.2]} 34. Bc5 {[%clk 0:01:40.8]} 34... Rxf7 {[%clk 0:00:36.7]} 35.
Nxf7 {[%clk 0:01:34.2]} 35... Bb7 {[%clk 0:00:37.2]} 36. Ne5+ {[%clk 0:01:28]}
36... Kh5 {[%clk 0:00:15.6]} 37. Nf3 {[%clk 0:01:22.1]} 37... g4 {[%clk
0:00:14.7]} 38. Ne1 {[%clk 0:01:06.1]} 38... a5 {[%clk 0:00:08.5]} 39. Be3
{[%clk 0:00:56.1]} 39... Ra6 {[%clk 0:00:03.8]} 40. Qb5 {[%clk 0:00:44.5]} 1-0

[Event "GrandPrix_29.05"]
[Site "Chess.com"]
[Date "2020.05.29"]
[Round "2"]
[White "GMStefanova"]
[Black "Vazgen352"]
[Result "0-1"]
[WhiteElo "2447"]
[BlackElo "2628"]
[TimeControl "600+2"]
[EndTime "9:56:26 PDT"]
[Termination "Vazgen352 won by checkmate"]

1. Nf3 {[%clk 0:10:00.8]} 1... Nf6 {[%clk 0:10:00.6]} 2. g3 {[%clk 0:10:00.8]}
2... g6 {[%clk 0:10:00.4]} 3. Bg2 {[%clk 0:10:00.5]} 3... Bg7 {[%clk 0:10:01.7]}
4. d4 {[%clk 0:09:57.8]} 4... c6 {[%clk 0:09:57.9]} 5. O-O {[%clk 0:09:56.1]}
5... O-O {[%clk 0:09:58.7]} 6. Bf4 {[%clk 0:09:18.8]} 6... d6 {[%clk 0:09:58.9]}
7. Qc1 {[%clk 0:09:15.3]} 7... Re8 {[%clk 0:09:55.4]} 8. Rd1 {[%clk 0:09:10.6]}
8... Qb6 {[%clk 0:09:37.6]} 9. Na3 {[%clk 0:09:00.5]} 9... Bf5 {[%clk
0:09:06.1]} 10. Nc4 {[%clk 0:08:47.3]} 10... Qa6 {[%clk 0:09:03.1]} 11. b3
{[%clk 0:08:43.4]} 11... Nbd7 {[%clk 0:09:01.7]} 12. Bf1 {[%clk 0:08:30.8]}
12... Bg4 {[%clk 0:08:52.3]} 13. Bh6 {[%clk 0:08:06.2]} 13... Bh8 {[%clk
0:08:44.4]} 14. Ne3 {[%clk 0:07:44.2]} 14... Bh5 {[%clk 0:08:27.9]} 15. h3
{[%clk 0:07:32]} 15... Bxf3 {[%clk 0:08:28.9]} 16. exf3 {[%clk 0:07:32.7]} 16...
Qa5 {[%clk 0:08:30.5]} 17. g4 {[%clk 0:07:04.3]} 17... c5 {[%clk 0:08:23.7]} 18.
d5 {[%clk 0:06:51.6]} 18... b5 {[%clk 0:06:27.8]} 19. a4 {[%clk 0:06:47.2]}
19... b4 {[%clk 0:06:18.2]} 20. Nc4 {[%clk 0:06:28.9]} 20... Qc7 {[%clk
0:06:13.8]} 21. a5 {[%clk 0:06:23.3]} 21... Ne5 {[%clk 0:05:45.6]} 22. Be2
{[%clk 0:05:37.5]} 22... Nxc4 {[%clk 0:05:19.3]} 23. Bxc4 {[%clk 0:05:36]} 23...
Nd7 {[%clk 0:05:20.9]} 24. Ra2 {[%clk 0:05:13.2]} 24... Ne5 {[%clk 0:05:14.2]}
25. Be2 {[%clk 0:05:10]} 25... c4 {[%clk 0:05:02.6]} 26. f4 {[%clk 0:05:09]}
26... cxb3 {[%clk 0:05:01.4]} 27. cxb3 {[%clk 0:05:07.5]} 27... Qxc1 {[%clk
0:05:02.4]} 28. Rxc1 {[%clk 0:05:08.1]} 28... Nd7 {[%clk 0:05:04.1]} 29. Bb5
{[%clk 0:04:57.7]} 29... Red8 {[%clk 0:05:05.1]} 30. Re2 {[%clk 0:04:50.1]}
30... Nc5 {[%clk 0:04:27.9]} 31. Rxe7 {[%clk 0:04:31.7]} 31... Bf6 {[%clk
0:04:28.5]} 32. Re3 {[%clk 0:04:20.7]} 32... Bd4 {[%clk 0:04:25.3]} 33. Rf3
{[%clk 0:04:12.7]} 33... Bc3 {[%clk 0:04:13.4]} 34. Bc4 {[%clk 0:04:11.8]} 34...
Re8 {[%clk 0:04:13.3]} 35. f5 {[%clk 0:04:09]} 35... Ne4 {[%clk 0:04:05.4]} 36.
fxg6 {[%clk 0:04:03.8]} 36... hxg6 {[%clk 0:04:07.3]} 37. h4 {[%clk 0:03:47.7]}
37... Nd2 {[%clk 0:03:39]} 38. Bxd2 {[%clk 0:03:44.7]} 38... Bxd2 {[%clk
0:03:40.9]} 39. Rd1 {[%clk 0:03:44.9]} 39... Bc3 {[%clk 0:03:40.9]} 40. h5
{[%clk 0:03:44.7]} 40... Re4 {[%clk 0:03:34.7]} 41. Rg3 {[%clk 0:03:37]} 41...
Be5 {[%clk 0:03:17.1]} 42. Rg2 {[%clk 0:03:37.6]} 42... Rc8 {[%clk 0:03:07.2]}
43. f3 {[%clk 0:02:50.2]} 43... Bd4+ {[%clk 0:02:58.4]} 44. Kf1 {[%clk
0:02:36.3]} 44... Rf4 {[%clk 0:02:59.6]} 45. Rd3 {[%clk 0:02:34.6]} 45... Kg7
{[%clk 0:03:00.5]} 46. Re2 {[%clk 0:02:31.2]} 46... Kf6 {[%clk 0:02:49.2]} 47.
hxg6 {[%clk 0:02:27.2]} 47... Kxg6 {[%clk 0:02:44.5]} 48. Kg2 {[%clk 0:02:25.3]}
48... Rh8 {[%clk 0:02:41.4]} 49. Re7 {[%clk 0:02:17.4]} 49... f5 {[%clk
0:02:19.1]} 50. gxf5+ {[%clk 0:01:55.7]} 50... Kf6 {[%clk 0:02:17.8]} 51. Re6+
{[%clk 0:01:33.6]} 51... Kxf5 {[%clk 0:02:18.6]} 52. Rxd6 {[%clk 0:01:32.9]}
52... Rfh4 {[%clk 0:02:04.8]} 53. Rxd4 {[%clk 0:01:20.6]} 53... Rxd4 {[%clk
0:02:01.6]} 54. Rd7 {[%clk 0:01:16.6]} 54... Rd2+ {[%clk 0:01:59]} 55. Kg3
{[%clk 0:01:13.9]} 55... Rg8+ {[%clk 0:01:59.7]} 56. Kh3 {[%clk 0:01:14.3]}
56... Rd1 {[%clk 0:01:53.8]} 57. Kh2 {[%clk 0:00:53.5]} 57... Kf4 {[%clk
0:01:53.3]} 58. Rf7+ {[%clk 0:00:43.1]} 58... Ke3 {[%clk 0:01:53.8]} 59. Rxa7
{[%clk 0:00:42.1]} 59... Kf2 {[%clk 0:01:53.1]} 60. Rh7 {[%clk 0:00:26.2]} 60...
Rg2+ {[%clk 0:01:53.1]} 61. Kh3 {[%clk 0:00:20.9]} 61... Rh1# {[%clk 0:01:54.2]}
0-1